bitfinex/quotes_SOLUSD_20250719
["timestamp","ask_amount","ask_price","bid_price","bid_amount"]
[1752908754675,0.2,176.71,176.7,94.27299536]
[1752908754843,0.2,176.71,176.7,90.01288713]
[1752908755275,0.2,176.71,176.7,46.11288713]
[1752908755646,0.2,176.71,176.7,90.35288713]
[1752908755843,4.41010823,176.71,176.7,29.32820316]
[1752908756050,4.41010823,176.71,176.7,3.32820316]
[1752908757746,0.2,176.71,176.7,91.01288713]
[1752908757964,0.2,176.76,176.74,16.78468397]
[1752908758154,0.2,176.76,176.74,88.34468397]
[1752908758350,0.2,176.76,176.74,88.91048684]
[1752908758556,0.2,176.76,176.75,23.65930669]
[1752908760272,0.2,176.76,176.75,20.11919846]
[1752908760471,4.41010823,176.76,176.75,20.11919846]
[1752908760679,4.41010823,176.76,176.75,3.33451449]
[1752908761270,0.87,176.76,176.75,3.33451449]
[1752908761467,4.41010823,176.76,176.75,3.33451449]
[1752908762079,13.607605,176.76,176.75,3.33451449]
[1752908762462,19.990805,176.76,176.75,3.33451449]
[1752908764187,19.990805,176.76,176.69,42.78468397]
[1752908764486,3.54010823,176.7,176.69,42.78468397]
[1752908764690,4.21010823,176.7,176.69,42.78468397]
[1752908764889,4.21010823,176.7,176.65,0.72]
[1752908765094,0.67,176.69,176.66,16.78468397]
[1752908765272,0.67,176.69,176.65,16.78468397]
[1752908765474,3.54010823,176.67,176.65,16.78468397]
[1752908765674,3.54010823,176.67,176.66,42.78468397]
[1752908765890,0.67,176.68,176.66,42.78468397]
[1752908766190,3.54010823,176.67,176.66,42.78468397]
[1752908766392,3.54010823,176.68,176.67,16.78468397]
[1752908767064,0.71,176.7,176.67,16.78468397]
[1752908767065,3.54010823,176.69,176.67,16.78468397]
[1752908767287,3.54010823,176.69,176.67,65.53430615]
[1752908767489,3.54010823,176.69,176.68,19.27416524]
[1752908768392,3.54010823,176.72,176.69,16.78468397]
[1752908768588,3.54010823,176.72,176.69,62.94468397]
[1752908768790,3.54010823,176.72,176.7,2.48919949]
[1752908768986,1.654,176.78,176.71,17.48468397]
[1752908768987,3.54010823,176.73,176.71,17.48468397]
[1752908769182,3.54010823,176.73,176.71,16.78468397]
[1752908769382,0.71,176.72,176.69,45.46]
[1752908769585,3.54010823,176.75,176.69,88.20468397]
[1752908769586,3.54010823,176.7,176.69,88.20468397]
[1752908769897,4.25010823,176.7,176.69,88.20468397]
[1752908770698,4.25010823,176.7,176.69,16.78468397]
[1752908770874,4.25010823,176.7,176.68,16.78468397]
[1752908771079,0.71,176.69,176.68,16.78468397]
[1752908771377,4.25010823,176.69,176.68,16.78468397]
[1752908772193,4.25010823,176.69,176.64,31.66120191]
[1752908772395,3.54010823,176.66,176.65,16.78468397]
[1752908773690,0.71,176.68,176.65,16.78468397]
[1752908774000,5.65770862,176.75,176.65,16.78468397]
[1752908774202,3.54010823,176.71,176.67,16.78468397]
[1752908774402,3.54010823,176.71,176.68,0.7]
[1752908775680,3.54010823,176.7,176.68,0.7]
[1752908776509,0.71,176.73,176.69,16.78468397]
[1752908776701,3.54010823,176.71,176.69,16.78468397]
[1752908778002,3.54010823,176.73,176.69,22.44415831]
[1752908778304,3.54010823,176.73,176.71,16.78468397]
[1752908778609,3.54010823,176.73,176.71,104.38468397]
[1752908779996,3.54010823,176.72,176.71,104.38468397]
[1752908780595,12.24064495,176.76,176.71,104.38468397]
[1752908780800,3.54010823,176.73,176.71,110.0436446]
[1752908781085,3.54010823,176.73,176.71,104.38468397]
[1752908781989,0.71,176.75,176.71,105.08468397]
[1752908782186,3.54010823,176.73,176.71,105.08468397]
[1752908783925,0.71,176.75,176.71,105.08468397]
[1752908783926,3.54010823,176.75,176.73,16.78468397]
[1752908784154,0.2,176.76,176.75,16.78468397]
[1752908784417,0.2,176.76,176.75,104.38468397]
[1752908784797,3.74010823,176.76,176.75,104.38468397]
[1752908785721,0.2,176.76,176.75,104.38468397]
[1752908786714,3.74010823,176.76,176.75,104.38468397]
[1752908786933,4.45010823,176.76,176.75,104.38468397]
[1752908787142,0.91,176.76,176.75,104.38468397]
[1752908787304,3.74010823,176.76,176.75,104.38468397]
[1752908787500,4.45010823,176.76,176.75,87.6]
[1752908788317,3.74010823,176.76,176.75,87.6]
[1752908789641,3.74010823,176.76,176.75,88.3]
[1752908790136,3.74010823,176.76,176.75,87.6]
[1752908790505,0.2,176.76,176.75,87.6]
[1752908790705,3.74010823,176.76,176.75,87.6]
[1752908791113,3.74010823,176.76,176.75,104.38468397]
[1752908791313,0.2,176.76,176.75,104.38468397]
[1752908791516,3.74010823,176.76,176.75,104.38468397]
[1752908791731,3.74010823,176.76,176.75,105.08468397]
[1752908792645,0.2,176.76,176.75,105.08468397]
[1752908794813,3.74010823,176.76,176.75,104.38468397]
[1752908795535,3.74010823,176.76,176.75,138.39468397]
[1752908795712,3.74010823,176.76,176.75,104.38468397]
[1752908796043,4.45010823,176.76,176.75,87.6]
[1752908797126,10.10749677,176.76,176.75,87.6]
[1752908797336,13.647605,176.76,176.75,87.6]
[1752908799054,6.56738854,176.76,176.75,87.6]
[1752908799353,13.647605,176.76,176.72,16.78468397]
[1752908799541,3.54010823,176.73,176.72,16.78468397]
[1752908801636,9.86845712,176.73,176.69,87.6]
[1752908801828,3.54010823,176.7,176.69,131.88]
[1752908803549,4.21010823,176.7,176.69,87.6]
[1752908805256,4.21010823,176.7,176.67,148.54468397]
[1752908805459,3.54010823,176.68,176.67,148.54468397]
[1752908808035,3.54010823,176.68,176.67,149.26468397]
[1752908810760,5.04880823,176.75,176.67,149.26468397]
[1752908810761,0.67,176.72,176.67,149.26468397]
[1752908810943,3.54010823,176.68,176.67,149.26468397]
[1752908811143,0.67,176.71,176.67,149.26468397]
[1752908811449,3.54010823,176.68,176.67,149.26468397]
[1752908813361,3.54010823,176.68,176.67,132.48]
[1752908813586,3.54010823,176.68,176.67,148.54468397]
[1752908814743,3.54010823,176.68,176.67,148.10468397]
[1752908815087,3.54010823,176.68,176.67,131.32]
[1752908815372,4.21010823,176.68,176.67,87.6]
[1752908816053,9.87005842,176.68,176.67,87.6]
[1752908816767,9.87005842,176.68,176.66,43.7]
[1752908816959,3.54010823,176.67,176.66,43.7]
[1752908817172,3.54010823,176.67,176.65,148.04468397]
[1752908817384,3.54010823,176.66,176.65,148.02468397]
[1752908818580,3.54010823,176.66,176.65,87.6]
[1752908818581,9.20069919,176.66,176.65,87.6]
[1752908818763,9.87069919,176.66,176.65,87.6]
[1752908819360,9.20069919,176.66,176.65,87.6]
[1752908819780,3.54010823,176.66,176.65,87.6]
[1752908819972,3.54010823,176.66,176.64,87.63]
[1752908820284,3.54010823,176.65,176.64,88.35]
[1752908821380,9.20101963,176.65,176.64,87.63]
[1752908821587,9.87101963,176.65,176.64,0.03]
[1752908825101,0.67,176.67,176.64,0.03]
[1752908825265,3.54010823,176.65,176.64,0.75]
[1752908825467,15.66657471,176.73,176.65,16.78468397]
[1752908825666,0.67,176.71,176.66,17.50468397]
[1752908825985,15.66657471,176.73,176.66,17.50468397]
[1752908825986,3.54010823,176.67,176.66,16.78468397]
[1752908826189,3.54010823,176.67,176.66,104.38468397]
[1752908826559,3.54010823,176.67,176.66,105.10468397]
[1752908828886,3.54010823,176.68,176.66,105.10468397]
[1752908829094,6.38896694,176.72,176.67,60.90468397]
[1752908829275,3.54010823,176.71,176.69,16.78468397]
[1752908829462,3.54010823,176.71,176.7,0.72]
[1752908831974,3.54010823,176.71,176.69,60.14468397]
[1752908832177,5.71867683,176.72,176.69,60.86468397]
[1752908832475,3.54010823,176.71,176.69,60.86468397]
[1752908832865,0.06,176.72,176.7,0.72]
[1752908833069,3.60010823,176.72,176.71,0.72]
[1752908833284,0.06,176.72,176.71,0.72]
[1752908834992,3.60010823,176.72,176.71,0.72]
[1752908835381,3.60010823,176.72,176.71,43.92]
[1752908835968,0.06,176.72,176.71,43.92]
[1752908836168,0.06,176.72,176.71,59.98468397]
[1752908836501,0.06,176.72,176.71,60.70468397]
[1752908836877,3.60010823,176.72,176.71,60.70468397]
[1752908837690,3.60010823,176.72,176.71,148.30468397]
[1752908839705,0.06,176.72,176.71,148.30468397]
[1752908839997,3.60010823,176.72,176.71,148.30468397]
[1752908840408,3.60010823,176.72,176.71,182.31468397]
[1752908840702,0.06,176.72,176.71,182.31468397]
[1752908841869,3.60010823,176.72,176.71,182.31468397]
[1752908842274,3.60010823,176.72,176.71,182.15468397]
[1752908842475,0.06,176.72,176.71,182.15468397]
[1752908843005,3.60010823,176.72,176.71,182.15468397]
[1752908844082,0.06,176.72,176.71,182.15468397]
[1752908844603,4.27010823,176.72,176.71,130.64]
[1752908844904,4.27010823,176.72,176.71,87.6]
[1752908845203,3.60010823,176.72,176.71,87.6]
[1752908845690,0.06,176.72,176.71,87.6]
[1752908845875,3.60010823,176.72,176.71,87.6]
[1752908846288,3.60010823,176.72,176.71,87.63]
[1752908846481,4.27010823,176.72,176.71,87.63]
[1752908847506,3.60010823,176.72,176.71,87.63]
[1752908848519,9.92877731,176.72,176.71,87.63]
[1752908849583,9.92877731,176.72,176.71,0.03]
[1752908850604,0.06,176.72,176.71,0.03]
[1752908850805,3.60010823,176.72,176.71,0.03]
[1752908850996,3.60010823,176.72,176.71,0.75]
[1752908851918,3.60010823,176.72,176.71,0.03]
[1752908854111,3.60010823,176.72,176.71,0.75]
[1752908854417,3.60010823,176.72,176.71,0.03]
[1752908855797,9.25877731,176.72,176.71,0.03]
[1752908856903,3.60010823,176.72,176.71,0.03]
[1752908860998,9.95877731,176.72,176.71,0.03]
[1752908873050,27.64555824,176.72,176.67,0.03]
[1752908873254,7.08021646,176.68,176.67,0.03]
[1752908873612,7.78021646,176.68,176.67,0.03]
[1752908874330,13.44016665,176.68,176.67,0.03]
[1752908876042,6.35995019,176.68,176.67,0.03]
[1752908876254,12.74016665,176.68,176.67,0.03]
[1752908877130,9.20005842,176.68,176.67,0.03]
[1752908877328,3.54010823,176.68,176.67,0.7]
[1752908878725,5.6589893,176.71,176.67,0.7]
[1752908878944,3.54010823,176.68,176.67,0.03]
[1752908879454,3.54010823,176.68,176.67,0.7]
[1752908882845,5.65901506,176.71,176.67,0.7]
[1752908883155,3.54010823,176.69,176.67,0.7]
[1752908884557,3.54010823,176.7,176.68,16.78468397]
[1752908884727,3.54010823,176.7,176.69,0.67]
[1752908885344,3.54010823,176.71,176.69,0.67]
[1752908885549,3.54010823,176.7,176.69,0.67]
[1752908889460,0.06,176.72,176.7,16.78468397]
[1752908889637,3.54010823,176.71,176.7,16.78468397]
[1752908890252,3.54010823,176.71,176.7,17.46468397]
[1752908890464,4.31010823,176.71,176.67,88.31]
[1752908890772,4.31010823,176.71,176.67,0.03]
[1752908890773,3.54010823,176.68,176.67,0.03]
[1752908891329,5.71900274,176.71,176.67,0.71]
[1752908891531,3.54010823,176.68,176.67,0.71]
[1752908893564,0.06,176.71,176.67,0.71]
[1752908893743,3.54010823,176.69,176.67,0.71]
[1752908893943,0.06,176.71,176.68,16.78468397]
[1752908894157,3.60010823,176.71,176.69,0.68]
[1752908894337,3.54010823,176.7,176.68,16.78468397]
[1752908895036,3.54010823,176.7,176.69,17.46468397]
[1752908896457,3.54010823,176.7,176.68,16.78468397]
[1752908896760,3.54010823,176.69,176.68,17.46468397]
[1752908898233,3.54010823,176.7,176.68,17.46468397]
[1752908898546,3.54010823,176.7,176.69,0.68]
[1752908899628,0.06,176.71,176.69,0.68]
[1752908899773,3.54010823,176.7,176.69,105.06468397]
[1752908903762,0.06,176.71,176.7,16.78468397]
[1752908903969,0.06,176.71,176.7,17.46468397]
[1752908908643,0.06,176.71,176.7,110.72399353]
[1752908908847,0.06,176.71,176.7,114.26410176]
[1752908909049,0.06,176.71,176.7,114.83003271]
[1752908909766,0.06,176.71,176.7,105.06468397]
[1752908912670,0.06,176.71,176.7,104.38468397]
[1752908912851,0.06,176.71,176.7,105.06468397]
[1752908925181,0.06,176.71,176.7,113.54826734]
[1752908925374,0.06,176.71,176.7,147.55826734]
[1752908925577,0.06,176.71,176.7,146.99233639]
[1752908927390,0.06,176.71,176.7,144.73399353]
[1752908928088,0.06,176.71,176.7,139.07468397]
[1752908929190,0.06,176.71,176.7,146.18468397]
[1752908929484,2.96834286,176.71,176.7,87.6]
[1752908932387,2.96834286,176.71,176.67,145.51468397]
[1752908932680,2.25834286,176.69,176.67,145.51468397]
[1752908932884,0.65,176.7,176.67,145.51468397]
[1752908933092,2.25834286,176.69,176.67,146.19468397]
[1752908933791,0.06,176.71,176.69,16.78468397]
[1752908933963,2.31834286,176.71,176.67,87.63]
[1752908934168,2.25834286,176.69,176.68,57.86468397]
[1752908935288,2.25834286,176.69,176.68,16.78468397]
[1752908935795,2.90834286,176.7,176.68,16.78468397]
[1752908935999,2.25834286,176.7,176.68,16.78468397]
[1752908936200,2.25834286,176.7,176.68,17.46468397]
[1752908938195,2.25834286,176.7,176.69,51.06]
[1752908938393,2.25834286,176.7,176.69,10.0]
[1752908941391,2.25834286,176.7,176.69,10.68]
[1752908943399,6.25840175,176.73,176.7,10.0]
[1752908943598,2.25834286,176.72,176.7,10.68]
[1752908943777,5.65808569,176.74,176.71,0.68]
[1752908943973,2.25834286,176.73,176.71,0.68]
[1752908944396,2.25834286,176.73,176.71,10.68]
[1752908945007,2.25834286,176.72,176.71,10.0]
[1752908945577,2.85834286,176.72,176.7,51.06]
[1752908945782,2.25834286,176.71,176.7,10.0]
[1752908946687,6.25868214,176.72,176.7,10.0]
[1752908946900,2.25834286,176.71,176.7,10.0]
[1752908947200,2.85834286,176.71,176.7,10.0]
[1752908947407,8.51746399,176.71,176.7,10.0]
[1752908947704,2.25834286,176.71,176.7,10.0]
[1752908949895,2.25834286,176.71,176.7,10.71]
[1752908950097,2.25834286,176.71,176.7,27.49468397]
[1752908950795,2.25834286,176.72,176.7,27.49468397]
[1752908953115,2.25834286,176.72,176.7,156.15468397]
[1752908954412,2.25834286,176.72,176.7,146.15468397]
[1752908954605,2.25834286,176.72,176.7,156.15468397]
[1752908955500,2.25834286,176.71,176.7,156.15468397]
[1752908955896,2.25834286,176.71,176.7,115.09468397]
[1752908956415,2.25834286,176.71,176.7,114.38468397]
[1752908956713,2.25834286,176.71,176.7,115.09468397]
[1752908958313,5.65841614,176.73,176.7,115.09468397]
[1752908958500,2.25834286,176.72,176.7,115.09468397]
[1752908959018,2.25834286,176.71,176.7,115.09468397]
[1752908959400,2.25834286,176.71,176.7,105.09468397]
[1752908959617,2.25834286,176.71,176.7,115.09468397]
[1752908960133,0.6,176.76,176.7,115.09468397]
[1752908960317,5.65738854,176.76,176.72,10.0]
[1752908960523,2.25834286,176.75,176.73,0.71]
[1752908960708,2.25834286,176.75,176.74,0.71]
[1752908961414,2.25834286,176.75,176.72,87.6]
[1752908961415,2.85834286,176.75,176.72,97.6]
[1752908961616,2.25834286,176.73,176.72,97.6]
[1752908962700,7.91669175,176.73,176.72,87.6]
[1752908963110,8.51669175,176.73,176.72,87.6]
[1752908964436,8.51669175,176.73,176.69,0.03]
[1752908964736,7.91765242,176.7,176.69,0.03]
[1752908964938,9.19070884,176.7,176.69,0.03]
[1752908965111,9.79070884,176.7,176.69,0.03]
[1752908966839,13.32210812,176.7,176.69,0.03]
[1752908967009,13.32210812,176.7,176.67,1.90845114]
[1752908967209,7.06279856,176.68,176.67,1.90845114]
[1752908967719,7.66279856,176.68,176.67,1.90845114]
[1752908968636,13.32274875,176.68,176.67,1.90845114]
[1752908974933,12.72274875,176.68,176.67,1.90845114]
[1752908976123,13.32274875,176.68,176.67,1.90845114]
[1752908978142,12.72274875,176.68,176.67,1.90845114]
[1752908979528,13.32274875,176.68,176.67,1.90845114]
[1752908982043,7.66279856,176.68,176.67,1.90845114]
[1752908985135,7.06279856,176.68,176.67,1.90845114]
[1752908988549,7.06279856,176.68,176.67,2.58845114]
[1752908989852,0.06,176.69,176.67,2.58845114]
[1752908990043,3.53139928,176.68,176.67,1.90845114]
[1752908990344,0.06,176.69,176.68,26.78468397]
[1752908990551,0.06,176.69,176.68,61.40468397]
[1752908993160,0.06,176.69,176.68,102.44468397]
[1752908998256,0.06,176.69,176.68,61.40468397]
[1752908998443,0.06,176.69,176.68,102.42468397]
[1752908999367,3.59139928,176.69,176.68,0.68]
[1752908999664,3.59139928,176.69,176.67,1.90845114]
[1752908999876,0.06,176.69,176.68,0.68]
[1752909000461,0.06,176.69,176.68,10.68]
[1752909000654,0.06,176.69,176.68,0.68]
[1752909001175,9.25102914,176.69,176.68,0.68]
[1752909002151,3.59139928,176.69,176.68,10.68]
[1752909003666,3.59139928,176.69,176.68,0.68]
[1752909003972,3.59139928,176.69,176.68,10.68]
[1752909004564,3.59139928,176.69,176.68,0.68]
[1752909004751,3.59139928,176.69,176.68,10.68]
[1752909004951,3.59139928,176.69,176.68,0.68]
[1752909005772,3.59139928,176.69,176.67,2.58845114]
[1752909005965,3.53139928,176.68,176.67,1.90845114]
[1752909006554,3.53139928,176.68,176.67,2.62845114]
[1752909007068,3.53139928,176.68,176.67,1.90845114]
[1752909007069,12.72274875,176.68,176.67,1.90845114]
[1752909007266,13.32274875,176.68,176.67,1.90845114]
[1752909011286,27.47262423,176.68,176.64,0.03]
[1752909011489,3.53139928,176.65,176.64,0.03]
[1752909012857,9.19231068,176.65,176.64,0.03]
[1752909014562,5.66063947,176.66,176.64,0.75]
[1752909014767,35.19164751,176.68,176.64,0.75]
[1752909014957,3.53139928,176.65,176.64,0.75]
[1752909015357,3.53139928,176.65,176.64,10.75]
[1752909015969,3.53139928,176.65,176.64,0.75]
[1752909016176,3.53139928,176.65,176.64,10.75]
[1752909017381,3.53139928,176.65,176.64,0.75]
[1752909017568,3.53139928,176.65,176.64,10.75]
[1752909019984,3.53139928,176.68,176.65,16.78468397]
[1752909020279,3.53139928,176.68,176.66,10.72]
[1752909020488,0.06,176.67,176.66,10.72]
[1752909021076,0.06,176.67,176.66,0.72]
[1752909021279,0.06,176.67,176.66,10.72]
[1752909022573,3.59139928,176.67,176.66,10.72]
[1752909023986,3.59139928,176.67,176.66,10.0]
[1752909024676,3.59139928,176.67,176.66,10.72]
[1752909025484,9.25168873,176.67,176.65,97.6]
[1752909025678,3.53139928,176.66,176.65,98.32]
[1752909025879,3.53139928,176.66,176.65,87.6]
[1752909027478,9.19199024,176.66,176.65,87.6]
[1752909029072,9.79199024,176.66,176.64,0.03]
[1752909029273,4.13139928,176.65,176.64,0.03]
[1752909029970,3.53139928,176.65,176.64,0.03]
[1752909031504,9.19231068,176.65,176.64,0.03]
[1752909032391,5.6609114,176.65,176.64,0.03]
[1752909032599,9.19231068,176.65,176.64,0.03]
[1752909032985,9.79231068,176.65,176.64,0.03]
[1752909036596,9.19231068,176.65,176.64,0.03]
[1752909044699,5.66059096,176.66,176.64,0.03]
[1752909044898,3.53139928,176.65,176.64,0.03]
[1752909046415,9.19231068,176.65,176.64,0.03]
[1752909047719,9.19231068,176.65,176.64,0.72]
[1752909047902,5.72031911,176.67,176.64,0.72]
[1752909048219,3.53139928,176.65,176.64,10.72]
[1752909049124,3.53139928,176.65,176.64,0.72]
[1752909049330,0.06,176.67,176.64,10.72]
[1752909049504,3.53139928,176.65,176.64,10.03]
[1752909050127,3.53139928,176.65,176.64,10.72]
[1752909053423,3.53139928,176.65,176.64,0.72]
[1752909053601,3.53139928,176.65,176.64,10.72]
[1752909057840,3.53139928,176.65,176.64,0.72]
[1752909058013,3.53139928,176.65,176.64,10.72]
[1752909060446,3.53139928,176.65,176.64,0.72]
[1752909060744,3.53139928,176.65,176.64,10.72]
[1752909060926,2.26050385,176.65,176.64,10.72]
[1752909063940,2.26050385,176.65,176.64,0.72]
[1752909064248,2.26050385,176.65,176.64,10.72]
[1752909074754,2.26050385,176.65,176.64,0.72]
[1752909074939,2.26050385,176.65,176.64,10.72]
[1752909077155,2.26050385,176.65,176.64,0.72]
[1752909077340,2.26050385,176.65,176.64,10.72]
[1752909077731,2.26050385,176.65,176.64,0.03]
[1752909078045,8.52141525,176.65,176.64,0.03]
[1752909080544,8.5584022,176.65,176.64,0.03]
[1752909083263,17.7483654,176.65,176.64,0.03]
[1752909083635,58.5683654,176.65,176.63,0.03]
[1752909083847,12.087454,176.64,176.63,0.03]
[1752909084751,17.74868588,176.64,176.63,0.03]
[1752909089901,17.74868588,176.64,176.63,0.75]
[1752909089902,5.66123188,176.64,176.63,0.75]
[1752909090062,2.2974908,176.65,176.63,0.75]
[1752909091789,2.2974908,176.64,176.63,0.75]
[1752909091955,2.2974908,176.64,176.63,0.03]
[1752909092662,2.8974908,176.64,176.63,0.03]
[1752909092965,4.18965676,176.64,176.63,0.03]
[1752909093275,7.77931352,176.64,176.63,0.03]
[1752909093966,9.25088864,176.64,176.63,0.03]
[1752909097857,50.63088864,176.64,176.63,0.03]
[1752909098765,50.03088864,176.64,176.63,0.03]
[1752909098966,50.63088864,176.64,176.63,0.03]
[1752909099779,54.2205454,176.64,176.63,0.03]
[1752909100157,0.06,176.67,176.63,36.3284]
[1752909100354,0.06,176.67,176.66,10.0]
[1752909100781,0.06,176.67,176.66,10.7]
[1752909101586,3.64965676,176.67,176.66,10.7]
[1752909101794,0.06,176.67,176.66,10.7]
[1752909106478,3.64965676,176.67,176.66,10.7]
[1752909106791,0.06,176.67,176.66,10.7]
[1752909108778,0.06,176.67,176.66,0.7]
[1752909109270,0.06,176.67,176.66,10.7]
[1752909111597,4.24965676,176.67,176.64,87.6]
[1752909111769,3.58965676,176.65,176.63,0.03]
[1752909111968,3.58965676,176.64,176.63,0.03]
[1752909113095,2.29715616,176.64,176.63,0.03]
[1752909114996,3.58953233,176.64,176.63,0.03]
[1752909117901,5.66110245,176.65,176.63,0.03]
[1752909118094,3.58953233,176.64,176.63,0.03]
[1752909118688,3.58953233,176.64,176.63,0.73]
[1752909121080,9.25076421,176.64,176.63,0.03]
[1752909122501,5.66123188,176.64,176.63,0.03]
[1752909122813,9.25076421,176.64,176.63,0.03]
[1752909125488,9.85076421,176.64,176.63,0.03]
[1752909126009,9.25076421,176.64,176.63,0.03]
[1752909126206,13.44029654,176.64,176.63,0.03]
[1752909129805,13.44029654,176.64,176.63,1e-08]
[1752909130205,27.59337625,176.64,176.6,0.03]
[1752909130392,3.58953233,176.61,176.6,0.03]
[1752909130713,29.58953233,176.61,176.6,0.03]
[1752909130895,30.18953233,176.61,176.6,0.03]
[1752909131095,30.18953233,176.61,176.59,0.03]
[1752909131096,26.0,176.6,176.59,0.03]
[1752909131412,38.29443539,176.6,176.57,0.03]
[1752909131602,7.17906466,176.58,176.57,0.03]
[1752909131802,47.85906466,176.58,176.57,0.03]
[1752909132120,48.45906466,176.58,176.56,0.03]
[1752909132416,13.4425409,176.57,176.56,0.03]
[1752909134602,39.4425409,176.57,176.56,0.03]
[1752909134800,42.22532639,176.57,176.55,1.82154658]
[1752909135000,7.17906466,176.56,176.55,1.82154658]
[1752909135308,7.77906466,176.56,176.55,1.82154658]
[1752909136003,53.50286166,176.56,176.55,1.82154658]
[1752909136386,54.10286166,176.56,176.55,1.82154658]
[1752909137110,46.323797,176.56,176.55,1.82154658]
[1752909137423,54.10286166,176.56,176.55,1.82154658]
[1752909138920,13.44286166,176.56,176.55,1.82154658]
[1752909139095,3.58953233,176.55,176.54,0.2]
[1752909139289,4.18953233,176.55,176.54,0.2]
[1752909140930,9.85365014,176.55,176.54,0.2]
[1752909141094,9.85365014,176.55,176.54,1e-08]
[1752909141806,9.85365014,176.55,176.53,0.03]
[1752909141999,35.85397098,176.54,176.53,0.03]
[1752909142202,35.85397098,176.54,176.51,0.2]
[1752909142520,3.58953233,176.52,176.51,0.2]
[1752909142885,7.77906466,176.52,176.5,0.03]
[1752909143090,33.77906466,176.51,176.5,0.03]
[1752909143309,30.18953233,176.51,176.5,0.03]
[1752909144396,35.85493372,176.51,176.5,0.03]
[1752909144797,76.51493372,176.51,176.5,0.03]
[1752909145533,75.91493372,176.51,176.5,0.71]
[1752909147711,75.91493372,176.51,176.5,0.03]
[1752909148142,76.51493372,176.51,176.5,0.03]
[1752909148717,80.10446605,176.51,176.49,0.03]
[1752909148909,7.77906466,176.5,176.49,0.03]
[1752909149114,5.6660434,176.49,176.46,0.2]
[1752909149312,3.58953233,176.47,176.46,0.2]
[1752909150146,3.58953233,176.47,176.46,0.88]
[1752909150349,9.25621788,176.47,176.46,0.88]
[1752909150519,9.25621788,176.47,176.46,0.2]
[1752909152633,5.66668555,176.47,176.46,0.2]
[1752909152821,40.16350348,176.51,176.46,10.88]
[1752909152822,26.0,176.51,176.46,10.88]
[1752909153023,3.58953233,176.48,176.46,0.2]
[1752909153238,3.58953233,176.48,176.47,0.68]
[1752909153440,44.22953233,176.48,176.47,0.68]
[1752909154946,40.64,176.48,176.47,12.2611]
[1752909155248,3.64953233,176.56,176.5,10.0]
[1752909155249,3.58953233,176.53,176.5,10.0]
[1752909155543,3.58953233,176.53,176.48,6.0133]
[1752909155544,40.64,176.52,176.51,10.68]
[1752909155720,3.58953233,176.53,176.51,10.68]
[1752909155926,44.22953233,176.52,176.5,10.0]
[1752909156138,3.58953233,176.51,176.5,10.0]
[1752909156318,44.22953233,176.51,176.5,10.72]
[1752909156515,3.58953233,176.51,176.5,10.72]
[1752909156916,9.25493372,176.51,176.5,10.72]
[1752909157783,40.64,176.52,176.5,10.72]
[1752909158040,40.64,176.52,176.5,10.0]
[1752909158346,3.58953233,176.51,176.5,10.0]
[1752909159069,3.58953233,176.51,176.5,10.72]
[1752909160050,40.64,176.52,176.5,10.72]
[1752909160246,40.64,176.52,176.51,0.72]
[1752909160476,44.22953233,176.52,176.51,0.72]
[1752909160973,0.06,176.56,176.51,0.72]
[1752909161259,44.20953233,176.55,176.53,10.0]
[1752909161423,44.20953233,176.55,176.54,0.72]
[1752909163268,49.87365014,176.55,176.54,0.72]
[1752909164338,46.28411781,176.55,176.54,0.72]
[1752909164554,49.87365014,176.55,176.54,0.72]
[1752909166875,44.69277462,176.6,176.54,0.72]
[1752909166876,0.06,176.6,176.59,10.0]
[1752909167066,0.06,176.6,176.59,10.72]
[1752909170583,0.06,176.6,176.59,33.73380226]
[1752909170873,0.06,176.6,176.59,37.32333459]
[1752909171466,0.06,176.6,176.59,33.73380226]
[1752909171855,0.06,176.6,176.59,121.33380226]